Cogmind - Beta 10.1 @@@ ROGUE MODE // 2020.10.26 @ 14:32:37 Player: derk Result: Destroyed by D-53 Grenadier with Mini Grenade Launcher Performance ------------- Evolutions (2) 1000 Regions Visited (8) 1600 Robots Destroyed (147) 735 Value Destroyed (5040) 5040 Prototype IDs (33) 660 Alien Tech Used (0) 0 Bonus (2132) 2132 TOTAL SCORE: 11167 Bonus ------- High Alert Combat Kills 561 Follower Combat Kills 354 Entered Garrisons 400 Used RIF Installer 1000 Friendly Fire -183 Cogmind --------- Core Integrity 0/550 Matter 292/300 Energy 240/240 System Corruption 3% Temperature Cool (0) Movement Treading (183) Ox1 Location -8/Garrison Parts ------- > --- POWER (1) -------- Nuclear Core > --- PROPULSION (3) --- Light Treads Light Treads Armored Treads > --- UTILITY (5) ------ Large Storage Unit High-capacity Storage Unit High-capacity Storage Unit Hardened Medium Armor Plating Hardened Medium Armor Plating > --- WEAPON (2) ------- Precision Beam Rifle Heavy Assault Rifle > --- INVENTORY (26) --- Makeshift Power Source Light Treads Light Treads Light Treads Armored Huge Wheel Large Storage Unit Particle Charger Hardened Medium Armor Plating Relay Coupler [NC] (28) Relay Coupler [NC] (29) Relay Coupler [Grunt] (24) Improved Trap Extractor Precision Beam Rifle High-powered Shotgun Shock Bomb Launcher Mini Grenade Launcher Improved Grenade Launcher Datajack Remote Datajack Longsword +1 Proton Bomb Trap Proton Bomb Trap Peak State ------------ > --- POWER ------------ Fission Core > --- PROPULSION ------- Light Treads Armored Huge Wheel > --- UTILITY ---------- Large Storage Unit High-capacity Storage Unit High-capacity Storage Unit Makeshift Sensor Array Improved Light Armor Plating > --- WEAPON ----------- Gauss Rifle Longsword +1 > --- INVENTORY -------- Light Nuclear Core Makeshift Power Source Light Treads Light Treads Light Treads Large Storage Unit Experimental Sensor Array Hardened Heavy Armor Plating Hacking Suite Improved Trap Extractor Lightning Gun Beamcaster Mini Grenade Launcher Mini Grenade Launcher Datajack Remote Datajack Makeshift Sword Great Axe Dirty Bomb Trap Dirty Bomb Trap Proton Bomb Trap Proton Bomb Trap [Rating: 43] Favorites ----------- Power Light Nuclear Core Engine Ion Engine Power Core Light Nuclear Core Propulsion Light Treads Treads Light Treads Wheel Armored Huge Wheel Utility High-capacity Storage Unit Device Makeshift Sensor Array Storage High-capacity Storage Unit Hackware Relay Coupler [NC] Protection Hardened Medium Armor Plating Weapon Heavy Assault Rifle Energy Gun Lightning Gun Ballistic Gun Heavy Assault Rifle Launcher Mini Grenade Launcher Special Weapon Remote Datajack Slashing Weapon Longsword +1 Special Melee Weapon Datajack Build | -11 -10 -10 -10 -9 -8 -8 -8 -8 ------- Run | Scr Mat Min Exi Min Mat Gar Mat Gar Slots Evolved 4 | . . . . . 4 . . . Power . | . . . . . . . . . Propulsion 1 | . . . . . 1 . . . Utility 3 | . . . . . 3 . . . Weapon . | . . . . . . . . . Parts Attached 132 | 7 7 5 3 10 24 25 44 7 Power 11 | 1 1 2 1 1 2 1 2 . Engine 5 | 1 . 2 . . 1 . 1 . Core 6 | . 1 . 1 1 1 1 1 . Reactor . | . . . . . . . . . Propulsion 18 | 2 2 1 . 2 2 4 3 2 Treads 13 | . 2 1 . 1 2 4 1 2 Leg . | . . . . . . . . . Wheel 5 | 2 . . . 1 . . 2 . Hover . | . . . . . . . . . Flight . | . . . . . . . . . Utility 36 | 2 2 . . 2 7 9 12 2 Device 5 | . . . . 1 2 1 1 . Storage 9 | 2 2 . . 1 3 . 1 . Processor . | . . . . . . . . . Hackware 7 | . . . . . . 2 5 . Protection 15 | . . . . . 2 6 5 2 Artifact . | . . . . . . . . . Weapon 67 | 2 2 2 2 5 13 11 27 3 Energy Gun 12 | 1 . . . 1 5 . 4 1 Energy Cannon . | . . . . . . . . . Ballistic Gun 14 | 1 2 1 . . 1 2 7 . Ballistic Cannon . | . . . . . . . . . Launcher 14 | . . 1 . 3 1 3 5 1 Special Weapon 1 | . . . . . . . 1 . Impact Weapon . | . . . . . . . . . Slashing Weapon 18 | . . . 2 1 5 3 6 1 Piercing Weapon . | . . . . . . . . . Special Melee Weapon 8 | . . . . . 1 3 4 . Unidentified Prototypes 4 | . . . . . 2 . 2 . Parts Lost 12 | . . 2 . . 1 6 3 . Power 3 | . . 1 . . . 1 1 . Propulsion . | . . . . . . . . . Utility 4 | . . . . . . 3 1 . Weapon 5 | . . 1 . . 1 2 1 . Highest Loss Streak 3 | . . 1 . . 1 3 2 . Average Slot Usage (%) 92 | . 100 99 100 90 89 85 85 96 Engine 3 | . 9 13 6 . . . 1 . Core 7 | . 4 . 7 14 9 9 3 9 Treads 15 | . 8 28 28 10 9 13 11 21 Wheel 6 | . 19 . . 8 9 6 7 2 Device 1 | . . . . . 9 . . . Storage 27 | . 28 28 28 27 27 27 27 27 Hackware 1 | . . . . . . 3 5 1 Protection 6 | . . . . . 8 8 10 16 Energy Gun 3 | . 5 . . 4 7 . 2 5 Ballistic Gun 10 | . 22 20 14 10 3 8 5 9 Launcher 4 | . . 7 6 12 1 3 1 2 Slashing Weapon 2 | . . . 7 . 3 2 2 . Special Melee Weapon 1 | . . . . . 1 2 3 . Naked Turns . | . . . . . . . . . Heaviest Build 117 | 17 59 59 59 63 107 117 113 112 Greatest Support 60 | 26 40 40 40 40 28 60 60 60 Greatest Overweight (x) 5 | 1 2 1 1 2 5 5 4 3 Average Overweight (x) 2 | . 1 1 1 1 3 3 2 1 Largest Inventory Capacity 26 | 8 18 18 18 18 26 26 26 26 Average Capacity 22 | 6 17 18 18 17 24 26 26 26 Most Carried 26 | 7 18 18 18 18 26 26 26 26 Average Carried 21 | 4 15 17 17 17 21 25 25 24 Final Capacity 26 | 8 18 18 18 18 26 26 26 26 Final Carried 26 | 7 18 17 18 18 26 26 26 23 Class Distribution -------------------- 41% | Mutant 41% | Hauler-Mutant 12% | Bothacker-Mutant Dominant Class ---------------- Mutant | -10/Materials Mutant | -10/Mines Mutant | -10/Exiles Mutant | -9/Mines Hauler-Mutant | -8/Materials Hauler-Mutant | -8/Garrison Bothacker-Mutant | -8/Materials Hauler-Mutant | -8/Garrison Resources | -11 -10 -10 -10 -9 -8 -8 -8 -8 ----------- Run | Scr Mat Min Exi Min Mat Gar Mat Gar Matter Collected 3231 | 279 401 294 30 235 297 418 727 550 Remotely . | . . . . . . . . . Salvage Created 4812 | 87 653 232 209 137 691 439 1724 640 Parts 279 | 2 34 12 9 15 45 35 104 23 Haulers Intercepted 6 | . 2 . . . 1 . 3 . Recyclers Shooed 2 | . . . . . . . 2 . Parts Field Recycled . | . . . . . . . . . Retrieved Matter . | . . . . . . . . . Parts Self-Destructed . | . . . . . . . . . Prevented . | . . . . . . . . . Kills | -11 -10 -10 -10 -9 -8 -8 -8 -8 ------- Run | Scr Mat Min Exi Min Mat Gar Mat Gar Combat Hostiles Destroyed 128 | . 15 7 . 18 14 18 39 17 Melee 33 | . . . . . 8 2 20 3 Guns 41 | . 15 4 . . 6 4 7 5 AOE 54 | . . 3 . 18 . 12 12 9 Classes Destroyed 12 | 1 3 1 . 1 2 1 2 1 Worker 5 | . . 1 . . . . 4 . Hauler 6 | . 2 . . . 1 . 3 . Recycler 2 | 1 1 . . . . . . . Operator 2 | . . . . . 2 . . . Watcher 3 | . . . . . . . 3 . Swarmer 38 | . 6 3 . 8 4 7 10 . Grunt 61 | . 9 4 . 2 7 9 18 12 Brawler 1 | . . . . . . . . 1 Duelist 2 | . . . . . . . 1 1 Sentry 16 | . . . . . 4 1 9 2 Hunter 3 | . . . . . . 1 1 1 Assembled 8 | . . . . 8 . . . . Best Kill Streak 9 | 1 6 3 . 6 7 9 9 4 Combat Bots Only 9 | . 6 3 . 6 7 9 5 4 Max Kills in Single Turn 6 | 1 1 3 . 6 1 3 2 2 Gunslinging 1 | . . 1 . . . . . . Exploded 6 | . . 3 . 6 . 3 2 2 Melee 1 | . . . . . 1 1 1 1 Uniques/NPCs Destroyed . | . . . . . . . . . Combat | -11 -10 -10 -10 -9 -8 -8 -8 -8 -------- Run | Scr Mat Min Exi Min Mat Gar Mat Gar Damage Taken 4645 | . 266 456 . 128 401 1109 1588 697 Core 733 | . 58 107 . 9 57 131 239 132 Absorbed by Shields 111 | . . . . . . . 75 36 Core Remaining (%) 65 | 100 . . . 30 . . . . Volleys Fired 229 | 3 51 23 . 12 25 25 50 40 Largest 2 | 2 2 2 . 2 2 2 2 2 Hottest 103 | 70 70 53 . 85 103 103 86 84 Shots Fired 377 | 6 102 45 . 13 35 42 80 54 Gun 324 | 6 102 43 . 1 34 32 64 42 Cannon . | . . . . . . . . . Launcher 50 | . . 2 . 12 1 10 13 12 Special 3 | . . . . . . . 3 . Kinetic 239 | 3 82 43 . . 10 30 43 28 Thermal 69 | 3 20 . . . 9 2 21 14 Explosive 50 | . . 2 . 12 1 10 13 12 Electromagnetic 16 | . . . . 1 15 . . . Robot Hit Streak 11 | 6 10 11 . 4 7 11 8 5 Robot Miss Streak 4 | . 3 3 . 2 4 2 2 3 Penetration Max 1 | . . . . . 1 . . . Secondary Targets 3 | . 1 1 . . . 1 . . Max Gunslinging Chain 1 | . 1 1 . . . 1 . . Shots Hit Robots 327 | 6 67 25 9 3 41 34 107 35 Core Hits 214 | 2 25 13 4 26 19 29 66 30 Critical Hits 6 | . 3 . . . 1 . 1 1 Critical Kills 2 | . 1 . . . . . 1 . Critical Parts Destroyed 4 | . 2 . . . 1 . . 1 Melee Attacks 115 | . . . 9 . 25 10 59 12 Impact . | . . . . . . . . . Slashing 89 | . . . 9 . 20 5 43 12 Piercing . | . . . . . . . . . Sneak Attacks 28 | . . . . . 9 . 19 . Combat Hostiles 1 | . . . . . 1 . . . Follow-up Attacks . | . . . . . . . . . Damage Inflicted 12881 | 76 907 521 1208 987 1604 1482 4433 1663 Guns 3327 | 76 907 393 . . 472 418 631 430 Cannons . | . . . . . . . . . Explosions 4572 | . . 128 . 987 . 872 1605 980 Melee 4982 | . . . 1208 . 1132 192 2197 253 Ramming . | . . . . . . . . . Kinetic 2299 | 40 771 393 . . 128 375 363 229 Thermal 855 | 36 136 . . . 171 43 268 201 Explosive 4572 | . . 128 . 987 . 872 1605 980 Electromagnetic 173 | . . . . . 173 . . . Impact . | . . . . . . . . . Slashing 4982 | . . . 1208 . 1132 192 2197 253 Piercing . | . . . . . . . . . Highest Corruption 3 | . . . . . 3 3 3 3 Average Corruption 3 | . . . . . 3 3 3 3 Corruption Purged . | . . . . . . . . . Effects 100 | . . . . . 6 28 40 26 Message Errors 31 | . . . . . 1 6 11 13 Matter Fused 32 | . . . . . 2 10 12 8 Heat Flow Errors 12 | . . . . . 1 3 6 2 Energy Discharges 11 | . . . . . . 6 4 1 Data Loss (minor) 7 | . . . . . 2 1 4 . Targeting Errors 7 | . . . . . . 2 3 2 Overload Shots . | . . . . . . . . . Overflow Damage 883 | . . . 119 3 307 14 438 2 Projectiles . | . . . . . . . . . Explosions 186 | . . . . 3 . 7 174 2 Melee 697 | . . . 119 . 307 7 264 . Knockbacks . | . . . . . . . . . Impact . | . . . . . . . . . Kinetic . | . . . . . . . . . Secondary . | . . . . . . . . . Self-Inflicted Damage 261 | . . 30 . 25 . 124 65 17 Shots 11 | . . 1 . 2 . 5 2 1 Rammed . | . . . . . . . . . Targets Rammed . | . . . . . . . . . Kicked . | . . . . . . . . . Crushed . | . . . . . . . . . Highest Temperature 324 | 27 39 47 . 30 240 256 324 234 Average Temperature 73 | 14 12 18 . 18 67 83 110 61 Received Heat Transfer 1806 | . 102 234 . . 189 468 573 240 Effects 2 | . . . . . 1 . 1 . Shutdowns 1 | . . . . . . . 1 . Energy Bleed 1 | . . . . . 1 . . . Siege Activations . | . . . . . . . . . Robots Corrupted . | . . . . . . . . . Combat Hostiles . | . . . . . . . . . Parts Fried . | . . . . . . . . . Impact Corruptions . | . . . . . . . . . Robots Melted . | . . . . . . . . . Combat Hostiles . | . . . . . . . . . Parts Melted . | . . . . . . . . . Heat Transferred 1924 | 111 407 . . . 296 74 592 444 Parts Sabotaged . | . . . . . . . . . Parts Stolen . | . . . . . . . . . Parts Stripped . | . . . . . . . . . Power Chain Reactions . | . . . . . . . . . Missiles Intercepted . | . . . . . . . . . Alert | -11 -10 -10 -10 -9 -8 -8 -8 -8 ------- Run | Scr Mat Min Exi Min Mat Gar Mat Gar Peak Influence 982 | 5 401 216 . 242 387 689 982 526 Initial 330 | . 3 116 . . 27 193 330 53 Average 307 | 1 174 95 . 95 238 564 401 382 Maximum Alert Level 3 | . 2 1 . 1 1 2 3 2 Low Security (%) 39 | 100 58 87 . 72 34 . 34 15 Level 1 24 | . 40 12 . 27 65 10 10 26 Level 2 32 | . . . . . . 88 37 57 Level 3 3 | . . . . . . . 17 . Level 4 . | . . . . . . . . . Level 5 . | . . . . . . . . . High Security . | . . . . . . . . . Max Security . | . . . . . . . . . Squads Dispatched 13 | . 4 1 . . 4 . 4 . Investigation 3 | . 2 . . . . . 1 . Extermination . | . . . . . . . . . Reinforcement 7 | . 2 . . . 3 . 2 . Assault 2 | . . 1 . . . . 1 . Garrison 1 | . . . . . 1 . . . Intercept . | . . . . . . . . . Construction Impeded . | . . . . . . . . . Haulers Reinforced . | . . . . . . . . . Stealth | -11 -10 -10 -10 -9 -8 -8 -8 -8 --------- Run | Scr Mat Min Exi Min Mat Gar Mat Gar Distress Signals 9 | . 4 . . . 1 . 4 . Communications Jammed . | . . . . . . . . . Distress Signals . | . . . . . . . . . Times Spotted 189 | . 28 8 . 22 31 21 56 23 Peak Tracking Total 8 | . 4 2 . 6 7 8 7 5 Tactical Retreats 11 | . 1 1 . 1 1 2 1 4 Traps | -11 -10 -10 -10 -9 -8 -8 -8 -8 ------- Run | Scr Mat Min Exi Min Mat Gar Mat Gar Traps Triggered 14 | . . . . . 1 2 . 11 Indirectly . | . . . . . . . . . Trap Hack Attempts 83 | . . . . . 26 6 51 . Triggered . | . . . . . . . . . Disarmed 1 | . . . . . 1 . . . Reprogrammed 8 | . . . . . 3 2 3 . Reused 4 | . . . . 1 . . . 3 Traps Extracted 8 | . . . . 3 2 . 3 . Installed 5 | . . . . 1 . . . 4 Triggered 3 | . . . . . . . . 3 Machines | -11 -10 -10 -10 -9 -8 -8 -8 -8 ---------- Run | Scr Mat Min Exi Min Mat Gar Mat Gar Machines Disabled 6 | . . . . . . 2 2 2 Max in Single Turn 1 | . . . . . . 1 1 1 Garrison Relay 4 | . . . . . . 2 . 2 Machines Sabotaged . | . . . . . . . . . Garrisons Compromised . | . . . . . . . . . Overloaded Fab Kills . | . . . . . . . . . Fab Network Shutdowns . | . . . . . . . . . Hacking | -11 -10 -10 -10 -9 -8 -8 -8 -8 --------- Run | Scr Mat Min Exi Min Mat Gar Mat Gar Machines Accessed 29 | . 7 . 2 1 7 . 12 . Terminals 18 | . 5 . . . 5 . 8 . Fabricators . | . . . . . . . . . Repair Stations 2 | . 1 . . . . . 1 . Recycling Units 1 | . 1 . . . . . . . Scanalyzers 3 | . . . . . 1 . 2 . Garrison Access 2 | . . . . . 1 . 1 . Total Hacks 94 | . 25 . 2 1 25 . 41 . Successful 53 | . 13 . 2 1 17 . 20 . Failed 40 | . 11 . . . 8 . 21 . Catastrophic 3 | . . . . . 1 . 2 . Database Lockouts 1 | . 1 . . . . . . . Manual 48 | . 15 . 2 . 11 . 20 . Terminals 66 | . 21 . . . 18 . 27 . Fabricators . | . . . . . . . . . Repair Stations 6 | . 1 . . . . . 5 . Recycling Units 3 | . 3 . . . . . . . Scanalyzers 14 | . . . . . 6 . 8 . Garrison Access 2 | . . . . . 1 . 1 . Terminal Hacks 25 | . 8 . 2 1 8 . 6 . Record 1 | . . . 1 . . . . . Part Schematic 3 | . 1 . . . . . 2 . Prototype ID Bank 1 | . . . . . . . 1 . Open Door 1 | . . . . 1 . . . . Branch Access Points 1 | . . . . . 1 . . . Emergency Access Points 3 | . 1 . . . 2 . . . Terminal Index 1 | . . . . . . . 1 . Locate Traps 4 | . 3 . . . 1 . . . Surveillance Status 1 | . . . . . 1 . . . Recall Reinforcements 2 | . 1 . . . 1 . . . Hauler Manifests 1 | . . . . . . . 1 . Registered Components 1 | . 1 . . . . . . . Zone Layout 4 | . 1 . . . 2 . 1 . EX-Prototype ID Bank 1 | . . . 1 . . . . . Fabricator Hacks . | . . . . . . . . . Repair Station Hacks 4 | . . . . . . . 4 . Scan Component 2 | . . . . . . . 2 . Repair 2 | . . . . . . . 2 . Recycling Unit Hacks . | . . . . . . . . . Scanalyzer 11 | . . . . . 5 . 6 . Insert Component 5 | . . . . . 2 . 3 . Analyze 6 | . . . . . 3 . 3 . Garrison Access Hacks 2 | . . . . . 1 . 1 . Unlock Access 2 | . . . . . 1 . 1 . Unauthorized Hacks 11 | . 5 . . . 3 . 3 . Terminals 9 | . 3 . . . 3 . 3 . Track 6 | . 2 . . . 2 . 2 . Disrupt 2 | . 1 . . . . . 1 . Operators 1 | . . . . . 1 . . . Fabricators . | . . . . . . . . . Repair Stations 1 | . 1 . . . . . . . Mechanics 1 | . 1 . . . . . . . Recycling Units 1 | . 1 . . . . . . . Tunnel 1 | . 1 . . . . . . . Scanalyzers . | . . . . . . . . . Garrison Access . | . . . . . . . . . Data Cores Recovered . | . . . . . . . . . Used . | . . . . . . . . . Hacking Detections 23 | . 6 . . . 5 . 12 . Full Trace Events 3 | . 1 . . . 1 . 1 . Feedback Events . | . . . . . . . . . Feedback Blocked . | . . . . . . . . . Robot Schematics Acquired . | . . . . . . . . . Robots Built . | . . . . . . . . . Matter . | . . . . . . . . . Time . | . . . . . . . . . Total Robot Build Rating . | . . . . . . . . . Part Schematics Acquired 7 | . 1 . . . 1 . 5 . Parts Built . | . . . . . . . . . Matter . | . . . . . . . . . Time . | . . . . . . . . . Total Part Build Rating . | . . . . . . . . . Parts Repaired 2 | . . . . . . . 2 . Time 124 | . . . . . . . 124 . Parts Recycled . | . . . . . . . . . Recycled Matter . | . . . . . . . . . Retrieved Matter . | . . . . . . . . . Retrieved Components . | . . . . . . . . . Parts Scanalyzed 4 | . . . . . 1 . 3 . Part Schematics Acquired 4 | . . . . . 1 . 3 . Parts Damaged . | . . . . . . . . . Bothacking | -11 -10 -10 -10 -9 -8 -8 -8 -8 ------------ Run | Scr Mat Min Exi Min Mat Gar Mat Gar Used RIF Installer 2 | . . . . . . 1 . 1 Structural Interface 1 | . . . . . . . . 1 Robots Hacked 13 | . . . . . 3 2 8 . Non-combat 11 | . . . . . 3 . 8 . Combat 2 | . . . . . . 2 . . Robot Hacks Applied 21 | . . . . . 4 2 15 . parse_system 1 | . . . . . 1 . . . no_distress 1 | . . . . . 1 . . . deconstruct_machine 1 | . . . . . . . 1 . drop_inventory 1 | . . . . . . . 1 . find_recycling 2 | . . . . . 1 . 1 . check_alert 1 | . . . . . 1 . . . purge_threat 7 | . . . . . . . 7 . map_route 1 | . . . . . . . 1 . mark_security 1 | . . . . . . . 1 . formatsys_low 2 | . . . . . . . 2 . formatsys_high 3 | . . . . . . 2 1 . Relay Couplers Released 17 | . . . . . . 9 . 8 Machine Destruction 17 | . . . . . . 9 . 8 Attached 7 | . . . . . . 2 5 . Robots Rewired . | . . . . . . . . . Allies Hacked . | . . . . . . . . . Hacks Repelled . | . . . . . . . . . Allies | -11 -10 -10 -10 -9 -8 -8 -8 -8 -------- Run | Scr Mat Min Exi Min Mat Gar Mat Gar Total Allies 12 | . . 1 . 6 . 2 3 . Largest Group 6 | . . 1 1 6 6 2 3 3 Highest-Rated Group 110 | . . 31 31 110 110 32 42 42 Highest-Rated Ally 31 | . . 31 31 31 31 16 24 24 Total Orders 4 | . . . . . . 2 . 2 STAY 2 | . . . . . . 1 . 1 FOLLOW 2 | . . . . . . 1 . 1 Ally Attacks 96 | . . . 7 26 56 7 . . Total Damage 1260 | . . . 125 353 689 93 . . Kills 21 | . . . 4 8 8 1 . . Allies Corrupted . | . . . . . . . . . Allies Melted . | . . . . . . . . . Intel | -11 -10 -10 -10 -9 -8 -8 -8 -8 ------- Run | Scr Mat Min Exi Min Mat Gar Mat Gar Robot Analysis Total . | . . . . . . . . . Derelict Logs Recovered 3 | . . 2 . 1 . . . . Drone Launches . | . . . . . . . . . Drone Recoveries . | . . . . . . . . . Exploration | -11 -10 -10 -10 -9 -8 -8 -8 -8 ------------- Run | Scr Mat Min Exi Min Mat Gar Mat Gar Turns Passed 9901 | 85 990 1028 915 1153 895 1580 1839 1416 Spaces Moved 5429 | 65 604 524 493 764 527 824 910 718 Core 2 | 2 . . . . . . . . Treads 2387 | . 150 524 493 236 3 397 89 495 Legs . | . . . . . . . . . Wheels 3040 | 63 454 . . 528 524 427 821 223 Hover . | . . . . . . . . . Flight . | . . . . . . . . . Fastest Speed 50 | 50 90 180 180 110 130 130 120 130 Average Speed 151 | 90 124 180 180 138 130 173 134 166 Slowest Speed 260 | 100 200 180 180 180 260 260 183 183 Overloaded Moves . | . . . . . . . . . Propulsion Burnouts . | . . . . . . . . . Robots Hopped . | . . . . . . . . . Cave-ins Triggered . | . . . . . . . . . Exploration Rate (%) 74 | 6 90 97 92 99 51 68 88 76 Regions Visited 8 Branch Regions 3 Pre-discovered Areas 4 | . 1 1 1 1 . . . . Known Exits Taken 2 | . . . . . 1 . 1 . Unknown Exits Taken 5 | 1 1 1 1 1 . . . . Scrap Searched 3 | . . 1 . 2 . . . . Spaces Dug 90 | . . 10 . 50 10 9 11 . Terrain Destroyed 351 | . . 16 . 133 11 23 118 50 Melee . | . . . . . . . . . Projectile 1 | . . . . . 1 . . . AOE 350 | . . 16 . 133 10 23 118 50 Terrain Rammed . | . . . . . . . . . Walls Destroyed . | . . . . . . . . . Machines Disabled . | . . . . . . . . . Actions | -11 -10 -10 -10 -9 -8 -8 -8 -8 --------- Run | Scr Mat Min Exi Min Mat Gar Mat Gar Total 6596 | 81 741 563 514 848 669 922 1383 875 Wait 376 | . 50 10 . 37 22 . 224 33 Move 5423 | 64 603 523 492 763 527 823 910 718 Hop . | . . . . . . . . . Pick Up 91 | 7 17 1 5 12 14 11 19 5 Fast Attach 20 | 7 4 . 1 2 . 1 5 . Attach 29 | . . 2 . 1 7 9 8 2 Detach 3 | . . . . . . . 3 . Swap 83 | . 3 3 2 7 17 15 31 5 Drop 75 | . 13 1 5 13 6 10 20 7 Fire 229 | 3 51 23 . 12 25 25 50 40 Melee 115 | . . . 9 . 25 10 59 12 Ram . | . . . . . . . . . Kick . | . . . . . . . . . Crush . | . . . . . . . . . Escape Stasis 59 | . . . . . . 10 . 49 Rewire 5 | . . . . . . 2 3 . Trap 88 | . . . . 1 26 6 51 4 Miscellaneous . | . . . . . . . . . Route ------- -11/Scrapyard -10/Materials (discovered 4 exits: [*Mat x3] / [*Min]) -10/Mines (discovered 3 exits: [*Mat x2] / *Exi) -10/Exiles (discovered 2 exits: *Min x2) -9/Mines (discovered 2 exits: *Mat x2) -8/Materials (discovered 2 exits: [*Fac] / Gar) -8/Garrison (discovered 3 exits: *Mat x3) -8/Materials (discovered 3 exits: [*Fac x2] / Gar) -8/Garrison (discovered 3 exits: [*Fac x3]) History --------- Turn | Location | Event 14 | -11/Scrapyard | Discovered new exit (range 15) 86 | -11/Scrapyard | Entered Materials 308 | -10/Materials | Build established: Mutant 416 | -10/Materials | Central database locked down 603 | -10/Materials | Discovered new exit (range 3) 816 | -10/Materials | Discovered new exit (range 15) 961 | -10/Materials | Discovered new exit (range 16) 1056 | -10/Materials | Discovered new exit (range 12) 1076 | -10/Materials | Entered Mines 1133 | -10/Mines | Discovered new exit (range 6) 1218 | -10/Mines | Learned 4 Materials zone layouts 1287 | -10/Mines | Core integrity fell below 50% 1637 | -10/Mines | Discovered new exit (range 14) 2024 | -10/Mines | Learned location of Zion (-6) 2058 | -10/Mines | Met a Derelict testing a Signal Generator 2093 | -10/Mines | Deemed a non-threat by the Exiles lab entrance 2093 | -10/Mines | Discovered new exit (range 5) 2104 | -10/Mines | Entered Exiles 2104 | -10/Exiles | Found Exiles lab destroyed 2104 | -10/Exiles | Accompanied by 1 ally 2128 | -10/Exiles | Discovered new exit (range 15) 2383 | -10/Exiles | Opened EX-Vault 2396 | -10/Exiles | Found Longsword +1 3000 | -10/Exiles | Discovered new exit (range 11) 3019 | -10/Exiles | Entered Mines 3019 | -9/Mines | Accompanied by 1 ally 3441 | -9/Mines | Met a Derelict who couldn't figure out how to use a Trap Extractor 3676 | -9/Mines | Assembled infested the area 3681 | -9/Mines | Assisted by a Guerilla fighting off Assembled 3710 | -9/Mines | Received a Mining Laser from a helpful Derelict 3805 | -9/Mines | Found a damaged Exp. Sensor Array with a note attached 3808 | -9/Mines | Found Prototype Device 3995 | -9/Mines | Discovered new exit (range 8) 4032 | -9/Mines | Discovered new exit (range 7) 4061 | -9/Mines | Assisted by bots powering up and referring to "LRC-V3" 4172 | -9/Mines | Entered Materials 4172 | -8/Materials | Accompanied by 6 allies 4172 | -8/Materials | Evolved 4 slots: Propulsion x1, Utility x3 4177 | -8/Materials | Led the pair of lost Derelicts to an unsafe place 4184 | -8/Materials | Identified Exp. Sensor Array 4422 | -8/Materials | Discovered new exit (range 15) 4481 | -8/Materials | Build established: Hauler-Mutant 4854 | -8/Materials | Garrison activated, responded to threat 4907 | -8/Materials | Destroyed 7 combat bots 5067 | -8/Materials | Identified exit to Garrison 5067 | -8/Materials | Entered Garrison 5207 | -8/Garrison | Triggered checkpoint 5260 | -8/Garrison | Lost 3 parts (2u1w) 5279 | -8/Garrison | Destroyed 9 combat bots 5390 | -8/Garrison | Discovered new exit (range 12) 5414 | -8/Garrison | Installed Relay Interface Framework 5460 | -8/Garrison | Triggered checkpoint 5478 | -8/Garrison | Garrison Relay disabled 5781 | -8/Garrison | Spotted B-75 Beast 5781 | -8/Garrison | Spotted B-75 Beast 5882 | -8/Garrison | Triggered checkpoint 5926 | -8/Garrison | Garrison Relay disabled 5985 | -8/Garrison | Discovered new exit (range 15) 6129 | -8/Garrison | Triggered checkpoint 6176 | -8/Garrison | Lost 3 parts (1p1u1w) 6437 | -8/Garrison | Discovered new exit (range 9) 6647 | -8/Garrison | Entered Materials 6862 | -8/Materials | Build established: Bothacker-Mutant 6893 | -8/Materials | Repaired Arm. Huge Wheel 6975 | -8/Materials | Repaired Faulty Exp. Sensor Array 7283 | -8/Materials | Core integrity fell below 50% 7447 | -8/Materials | First assault squad dispatched 7580 | -8/Materials | Discovered new exit (range 16) 7939 | -8/Materials | Discovered new exit (range 9) 8165 | -8/Materials | Build established: Hauler-Mutant 8477 | -8/Materials | Identified exit to Garrison 8486 | -8/Materials | Entered Garrison 8486 | -8/Garrison | Accompanied by 3 allies 8583 | -8/Garrison | Garrison Relay disabled 8640 | -8/Garrison | Triggered checkpoint 8665 | -8/Garrison | Core integrity fell below 20% 8752 | -8/Garrison | Triggered checkpoint 8803 | -8/Garrison | Triggered checkpoint 8896 | -8/Garrison | Triggered checkpoint 8898 | -8/Garrison | Garrison Relay disabled 8975 | -8/Garrison | Triggered checkpoint 9001 | -8/Garrison | Discovered new exit (range 10) 9085 | -8/Garrison | Triggered checkpoint 9234 | -8/Garrison | Discovered new exit (range 14) 9557 | -8/Garrison | Discovered new exit (range 15) 9594 | -8/Garrison | Expanded RIF knowledge: Structural Interface 9902 | -8/Garrison | Destroyed by D-53 Grenadier with Mini Grenade Launcher Last Messages --------------- 09518_ System corrupted: Matter fused (-5). 09557_ EXIT=FOUND 09592_ Initiating installation procedure... 09594_ Expanded RIF knowledge: Structural Interface. 09594_ RIF reveals location of phase wall. 09663_ 8P|EM>SEF%A3O%WEB9UQD 09667_ RIF reveals location of phase wall. 09687_ System corrupted: Heat flow error (+166). 09693_ RIF reveals location of phase wall. 09714_ System corrupted: Energy discharge (-69). 09732_ UHSE WZQI#C9OOGAJ8 D4Y8M4T0L:ZPM3 09761_ Acquired 5 matter. 09772_ System corrupted: Matter fused (-6). 09789_ WX40WTTPUK/2,RLO6BKVCHE8 FZ6>PPUPNX2WRXS 09795_ Acquired 6 matter. 09820_ ESFEEG: